bitfinex/quotes_ETHUSD_20260227
["timestamp","ask_amount","ask_price","bid_price","bid_amount"]
[1772209170058,0.45208428,1942.0,1941.3,0.0011]
[1772209170942,1.73948321,1941.9,1941.3,0.0011]
[1772209171479,0.45208428,1941.7,1941.3,0.0011]
[1772209171660,0.45208428,1941.7,1941.2,0.0011]
[1772209171844,0.45208428,1941.5,1941.0,0.00263886]
[1772209172163,0.45208428,1941.5,1940.9,0.0011]
[1772209172939,1.2877305,1941.4,1940.9,0.0011]
[1772209175057,5.15092201,1941.5,1940.9,0.0011]
[1772209175369,5.60300629,1941.5,1940.9,0.0011]
[1772209175570,6.89000629,1941.5,1940.9,0.0011]
[1772209175867,2.86618535,1941.3,1940.5,0.0011]
[1772209176464,2.86618535,1941.3,1940.5,1.78079484]
[1772209176644,0.45208428,1941.3,1940.5,1.78079484]
[1772209177563,1.28786317,1941.2,1940.5,0.49248248]
[1772209179185,2.89250994,1940.6,1940.2,0.0011]
[1772209179353,0.47840887,1940.6,1940.2,0.0011]
[1772209179543,1.28832775,1940.5,1940.2,0.0011]
[1772209180272,0.4553494,1940.4,1940.0,0.00153886]
[1772209180638,0.4553494,1940.4,1940.3,0.0011]
[1772209180842,0.4553494,1940.4,1940.0,0.00153886]
[1772209181058,3.70242882,1940.5,1940.0,0.00153886]
[1772209181261,1.28832775,1940.5,1940.0,0.00153886]
[1772209181966,0.4553494,1940.3,1939.5,1.75924761]
[1772209182166,2.41410107,1940.4,1939.6,0.46917942]
[1772209182472,1.28832775,1940.5,1939.6,0.46917942]
[1772209183352,1.74367715,1940.5,1939.6,0.46917942]
[1772209183544,1.74367715,1940.5,1939.7,1.2888591]
[1772209183871,3.03467715,1940.5,1939.6,1.75805564]
[1772209184170,1.74367715,1940.5,1939.7,0.46917942]
[1772209184362,0.00153886,1941.0,1939.9,0.46917942]
[1772209184540,1.28806223,1940.9,1939.9,0.46917942]
[1772209185059,1.28958623,1941.0,1940.2,0.46917942]
[1772209185254,0.00153886,1941.0,1940.2,0.46917942]
[1772209185483,1.28954413,1941.0,1940.2,0.46917942]
[1772209185644,0.00153886,1941.0,1940.4,0.46917942]
[1772209185984,0.00153886,1941.0,1940.5,0.46917942]
[1772209186278,1.28884471,1941.3,1940.5,0.46917942]
[1772209186574,4.15829518,1941.3,1940.5,0.46917942]
[1772209186743,0.4553494,1941.2,1940.4,1.079]
[1772209186950,1.28884471,1941.3,1940.5,0.46917942]
[1772209187651,0.001,1941.3,1940.6,1.75744078]
[1772209187855,0.001,1941.3,1940.7,0.46917942]
[1772209189684,0.001,1941.3,1940.8,1.75730802]
[1772209189888,0.001,1941.3,1940.8,0.46917942]
[1772209191662,0.001,1941.3,1940.8,1.75727756]
[1772209192678,0.001,1941.3,1940.8,1.75837756]
[1772209192877,0.001,1941.2,1940.8,1.75837756]
[1772209193082,0.001,1941.2,1940.8,0.47027942]
[1772209195168,0.001,1941.2,1940.8,0.0011]
[1772209195572,0.001,1941.2,1940.8,1.28921934]
[1772209195884,0.001,1941.2,1940.8,1.28922189]
[1772209196463,1.28753154,1941.7,1940.9,0.46917942]
[1772209196880,1.28753154,1941.7,1941.0,1.082]
[1772209197085,1.28753154,1941.7,1941.1,0.46917942]
[1772209197272,2.51081529,1941.9,1941.2,1.75704259]
[1772209197273,5.14965782,1941.9,1941.2,1.75704259]
[1772209197466,1.28739893,1941.9,1941.3,0.46917942]
[1772209197867,1.28892186,1942.0,1941.3,0.46917942]
[1772209198481,0.4553494,1941.9,1941.0,1.75712471]
[1772209198692,0.4553494,1941.9,1941.1,1.082]
[1772209199488,1.28746523,1941.8,1941.2,1.28786317]
[1772209200094,1.28746523,1941.8,1941.1,2.8390622]
[1772209200271,1.74281463,1941.8,1941.1,1.55117942]
[1772209200469,1.74281463,1941.8,1941.1,1.75710766]
[1772209200800,5.14986018,1941.9,1941.3,0.46917942]
[1772209200801,1.28739893,1941.9,1941.3,0.46917942]
[1772209200963,0.4553494,1941.8,1941.0,0.46917942]
[1772209201527,0.4553494,1941.5,1940.8,1.0831]
[1772209202468,0.4553494,1941.5,1940.8,0.0011]
[1772209203488,0.4553494,1941.3,1940.8,0.0011]
[1772209203666,1.7423494,1941.2,1940.8,0.0011]
[1772209204294,1.7423494,1941.2,1940.7,0.0011]
[1772209205170,0.4553494,1941.1,1940.2,0.46917942]
[1772209205492,0.4553494,1940.5,1939.6,1.4100108]
[1772209205669,1.74372933,1940.5,1939.7,0.12108693]
[1772209206266,1.28828739,1940.6,1939.8,0.12134742]
[1772209206471,1.28818343,1940.8,1940.0,0.12134742]
[1772209206988,2.57658948,1941.0,1940.0,0.12134742]
[1772209207190,1.74493888,1941.0,1940.1,0.12160119]
[1772209207362,1.74493888,1941.0,1940.2,0.12160119]
[1772209207768,1.74493888,1941.0,1940.3,1.28846054]
[1772209208095,0.4553494,1940.9,1940.2,1.28847488]
[1772209208403,0.4553494,1940.7,1939.9,2.48955108]
[1772209208693,0.4553494,1940.7,1939.8,1.28876213]
[1772209208993,0.4553494,1940.7,1939.7,1.079]
[1772209209200,0.4553494,1940.7,1939.7,2.36785536]
[1772209209392,0.4553494,1940.7,1939.6,1.28887858]
[1772209209695,0.4553494,1940.5,1939.6,1.28892064]
[1772209209893,1.28826136,1940.6,1939.5,0.0011]
[1772209209894,2.86945047,1940.2,1939.5,0.0011]
[1772209210091,0.4553494,1940.2,1939.5,1.29009095]
[1772209210396,0.4553494,1940.2,1939.5,0.0011]
[1772209210769,0.4553494,1940.2,1939.5,1.29009133]
[1772209211192,0.4553494,1940.2,1939.5,1.29009008]
[1772209212095,1.28839414,1940.4,1939.5,0.12418473]
[1772209212272,1.74522065,1940.4,1939.5,0.12418473]
[1772209212890,0.45682651,1940.3,1939.5,0.12418473]
[1772209213684,1.28839414,1940.4,1939.5,0.12418473]
[1772209214096,0.45682651,1940.3,1939.5,0.0011]
[1772209214770,0.45682651,1940.0,1939.5,0.0011]
[1772209215305,0.45682651,1939.7,1939.0,0.02733886]
[1772209216185,1.74575206,1939.6,1939.0,0.02733886]
[1772209216499,1.28892555,1939.6,1939.0,0.02733886]
[1772209216703,0.45682651,1939.5,1939.0,0.02733886]
[1772209217075,0.45682651,1939.4,1938.3,1.41398113]
[1772209217376,0.45682651,1939.4,1938.4,0.15158002]
[1772209217593,0.45682651,1939.3,1938.3,1.28977742]
[1772209218376,1.74581851,1939.5,1938.4,0.15182483]
[1772209218572,0.45682651,1939.4,1938.4,0.15182483]
[1772209219875,0.45836537,1940.0,1938.9,2.41410107]
[1772209220073,1.74555273,1939.9,1939.0,1.2313087]
[1772209220708,0.45682651,1939.8,1939.0,2.36826845]
[1772209221517,0.45682651,1939.8,1939.0,2.36832088]
[1772209221998,1.28872622,1939.9,1939.0,2.52109506]
[1772209222303,1.28872622,1939.9,1939.1,0.15277418]
[1772209222675,5.15644375,1940.0,1939.2,1.28919141]
[1772209223002,0.45682651,1939.9,1939.0,1.078]
[1772209223375,0.45682651,1939.9,1939.0,2.367316]
[1772209224220,0.45682651,1939.9,1939.0,2.52056196]
[1772209224510,0.45682651,1939.9,1939.1,0.15324596]
[1772209225006,0.45682651,1939.7,1938.9,1.28939089]
[1772209225701,1.74706139,1940.0,1939.0,0.15369417]
[1772209226198,0.45682651,1939.9,1939.0,0.15369417]
[1772209226405,0.45682651,1939.9,1939.1,0.15369417]
[1772209226702,0.45682651,1939.9,1939.1,1.078]
[1772209226899,1.74559603,1939.9,1939.2,1.28919141]
[1772209227485,1.29021287,1940.0,1939.3,0.15392236]
[1772209227698,1.29021287,1940.0,1939.2,1.28919141]
[1772209227910,1.74703938,1940.0,1939.2,1.28919141]
[1772209229178,0.45836537,1940.0,1939.2,1.44354885]
[1772209231217,0.00153886,1940.0,1939.5,0.15478133]
[1772209231417,0.00153886,1940.0,1939.6,1.23178133]
[1772209231826,0.00153886,1940.0,1939.6,1.078]
[1772209232901,0.00153886,1940.0,1939.6,1.23218864]
[1772209233314,0.00153886,1940.0,1939.5,1.078]
[1772209234298,0.45836537,1940.0,1939.1,2.3672579]
[1772209234497,0.45836537,1940.0,1939.1,2.52164751]
[1772209235106,0.45836537,1940.0,1939.2,0.15458903]
[1772209235307,0.00153886,1940.0,1939.4,0.15458903]
[1772209235818,0.00153886,1940.0,1939.3,1.28912494]
[1772209236335,0.45836537,1940.0,1938.8,1.44424973]
[1772209236503,0.45836537,1940.0,1938.9,1.23279234]
[1772209237355,0.45836537,1940.0,1938.6,5.15782958]
[1772209237356,0.45682651,1939.8,1938.6,1.44454729]
[1772209237506,0.45682651,1939.7,1938.6,2.52256517]
[1772209239514,0.47762548,1939.5,1938.6,2.52256517]
[1772209240033,0.49247569,1939.8,1938.7,0.15575104]
[1772209241634,1.28872622,1939.9,1939.0,0.15612339]
[1772209241832,1.28872622,1939.9,1939.1,1.08]
[1772209242036,0.49247569,1939.8,1939.1,1.08]
[1772209242931,0.001,1939.9,1939.2,3.54285682]
[1772209243235,0.001,1939.9,1939.2,0.15648077]
[1772209243536,0.001,1939.9,1939.3,1.28912494]
[1772209244236,0.001,1939.9,1939.3,1.44578609]
[1772209244424,0.001,1939.9,1939.4,0.15666115]
[1772209245022,0.001,1939.9,1939.5,1.08]
[1772209245408,1.78087996,1940.4,1939.6,1.44575798]
[1772209245735,0.49247569,1940.3,1939.5,2.3689805]
[1772209245943,0.49247569,1940.5,1939.6,0.15700987]
[1772209246149,0.49247569,1940.5,1939.5,2.3689805]
[1772209246150,0.49247569,1940.4,1939.5,2.3689805]
[1772209247455,0.49247569,1940.2,1939.5,1.08]
[1772209247627,0.49247569,1940.2,1939.5,2.36897439]
[1772209247948,0.49247569,1940.2,1939.5,2.36898073]
[1772209248836,0.49247569,1940.2,1939.5,2.36899162]
[1772209249956,0.49247569,1940.0,1939.5,2.36899162]
[1772209250129,0.49247569,1940.0,1939.5,1.28899162]
[1772209250332,0.49247569,1940.0,1939.4,2.36901899]
[1772209252052,1.28855962,1940.2,1939.4,2.52701876]
[1772209252224,1.78103531,1940.2,1939.4,2.52701876]
[1772209252630,0.49247569,1940.1,1939.4,2.36901899]
[1772209253029,0.49247569,1940.5,1939.6,3.38637605]
[1772209253358,0.49247569,1940.5,1939.6,3.54453318]
[1772209253760,1.78065251,1940.8,1939.8,1.44710394]
[1772209253959,1.78065251,1940.8,1939.9,1.24031129]
[1772209254131,0.49247569,1940.7,1939.9,1.24031129]
[1772209254567,0.49247569,1940.7,1939.9,1.082]
[1772209255951,0.49247569,1940.5,1939.9,2.37070409]
[1772209256540,0.49247569,1940.5,1939.9,1.082]
[1772209257569,0.49247569,1940.8,1939.9,2.52850457]
[1772209257770,0.49247569,1940.8,1940.0,0.15792842]
[1772209257934,0.00153886,1941.0,1940.0,0.15792842]
[1772209258137,0.49401455,1941.0,1940.1,4.83289784]
[1772209258536,0.49401455,1941.0,1940.1,1.44652179]
[1772209258751,0.49401455,1941.0,1940.2,1.081]
[1772209260072,1.78202964,1941.0,1940.3,1.28846054]
[1772209261183,0.49247569,1940.9,1940.3,2.36946054]
[1772209261372,1.28955395,1941.0,1940.3,2.36946054]
[1772209261373,0.00153886,1941.0,1940.4,0.1583605]
[1772209261576,0.49247569,1940.9,1940.1,1.28854783]
[1772209261758,0.49247569,1940.9,1939.9,1.081]
[1772209261962,0.49247569,1940.9,1939.5,1.29003663]
[1772209262139,0.49247569,1940.9,1939.5,2.37103663]
[1772209262140,0.49247569,1940.7,1939.5,2.37103663]
[1772209262345,0.49247569,1940.5,1939.5,1.0821]
[1772209263086,0.49247569,1940.5,1939.5,2.37108808]
[1772209263240,0.49247569,1940.5,1939.5,1.0821]
[1772209263861,0.49247569,1940.3,1939.5,0.0011]
[1772209264072,0.49247569,1940.1,1939.5,0.0011]
[1772209265382,1.28852695,1940.2,1939.5,0.0011]
[1772209265590,1.78087797,1940.4,1939.6,1.2389238]
[1772209266265,1.78087797,1940.4,1939.7,1.2888591]
[1772209266452,1.78087836,1940.4,1939.7,1.2888591]
[1772209266653,0.49247569,1940.3,1939.6,2.36888346]
[1772209267170,0.49247569,1940.8,1939.7,0.15919612]
[1772209267597,0.49247569,1940.8,1939.9,0.15919612]
[1772209267901,0.49247569,1940.8,1939.9,0.14919612]
[1772209268204,1.78066532,1940.8,1940.0,1.28865979]
[1772209268506,1.78066532,1940.8,1940.1,1.08]
[1772209269413,0.49247569,1940.7,1940.1,1.08]
[1772209269700,0.49247569,1940.7,1939.8,2.36876677]
[1772209270398,0.46002308,1940.5,1939.8,2.36876677]
[1772209271237,0.46002308,1940.5,1939.8,2.36878279]
[1772209271570,0.46002308,1940.5,1939.8,1.08]
[1772209271768,0.46002308,1940.5,1939.8,2.36877243]
[1772209272896,1.74841722,1940.4,1939.8,2.36877243]
[1772209273743,0.46002308,1940.3,1939.8,1.08]
[1772209274170,0.46002308,1940.3,1939.8,2.3687829]
[1772209274372,0.46002308,1940.3,1939.8,1.08]
[1772209274567,0.46002308,1940.3,1939.8,2.36878449]
[1772209274772,5.61325103,1940.6,1939.8,2.36878449]
[1772209275288,0.46002308,1940.5,1939.8,2.36878449]
[1772209276084,0.46002308,1940.5,1939.8,2.5193262]
[1772209276501,1.28824568,1940.7,1939.9,0.15054171]
[1772209276891,5.61267925,1940.8,1940.0,1.28865979]
[1772209277086,1.74815168,1940.8,1940.0,1.28865979]
[1772209277580,1.74815168,1940.8,1940.0,1.43933143]
[1772209278390,0.46002308,1940.8,1940.1,0.15079215]
[1772209278711,0.46002308,1940.8,1940.2,1.081]
[1772209279070,0.46002308,1940.8,1940.3,1.28846054]
[1772209279270,1.74815201,1940.8,1940.3,1.28846054]
[1772209279505,1.28954188,1941.0,1940.3,1.28846054]
[1772209279890,0.00153886,1941.0,1940.3,1.28846054]
[1772209280406,1.28954671,1941.0,1940.3,1.28846054]
[1772209280699,0.001,1940.7,1940.3,1.43950143]
[1772209282308,0.46102308,1940.7,1940.1,1.28854189]
[1772209282537,0.46102308,1940.7,1940.0,5.15449026]
[1772209282538,0.46102308,1940.7,1940.0,1.084]
[1772209283397,1.74828444,1940.6,1940.0,2.37260036]
[1772209283793,0.46002308,1940.5,1939.7,5.15528634]
[1772209283984,0.46002308,1940.5,1939.6,1.0861]
[1772209284204,0.46002308,1940.5,1939.6,2.37502542]
[1772209284373,0.46002308,1940.5,1939.6,1.0861]
[1772209285080,0.46002308,1940.5,1939.6,2.37502499]
[1772209285511,0.46002308,1940.3,1939.6,2.37502499]
[1772209286377,0.46002308,1940.3,1939.6,2.37501891]
[1772209287522,0.46002308,1940.5,1939.7,3.38637605]
[1772209288019,0.46002308,1940.5,1939.6,2.37501891]
[1772209288222,0.46002308,1940.5,1939.6,1.0861]
[1772209288674,0.46002308,1940.3,1939.6,0.0011]
[1772209288876,0.46002308,1940.3,1939.5,0.0011]
[1772209289507,0.46002308,1940.1,1939.5,0.0011]
[1772209291576,1.28865979,1940.0,1939.5,0.0011]
[1772209291814,0.46002308,1939.9,1939.5,0.0011]
[1772209292497,0.46002308,1939.9,1939.6,0.0011]
[1772209292814,1.7486685,1940.1,1939.6,0.0011]
[1772209294308,0.46002308,1940.0,1939.6,0.0011]
[1772209295884,1.28872622,1939.9,1939.6,0.0011]
[1772209296079,1.7487493,1939.9,1939.6,0.0011]
[1772209300715,0.46002308,1939.9,1939.6,0.0011]
[1772209301126,1.74874951,1939.9,1939.6,0.0011]
[1772209301432,0.46002308,1939.9,1939.6,0.0011]
[1772209301733,0.50227779,1940.1,1939.6,0.0011]
[1772209301887,1.79087209,1940.1,1939.6,0.0011]
[1772209302918,1.79077575,1940.3,1939.6,0.15578835]
[1772209303626,0.50227779,1940.3,1939.6,0.0011]
[1772209304697,1.79053915,1940.6,1939.8,0.15485864]
[1772209304910,0.50227779,1940.5,1939.8,0.15485864]
[1772209305118,0.001,1940.0,1939.7,1.2899591]
[1772209305323,0.001,1940.0,1939.7,0.0011]
[1772209306111,0.001,1940.0,1939.7,0.15604017]
[1772209307022,1.79053915,1940.6,1939.8,1.44280657]
[1772209307202,1.28826136,1940.6,1939.9,0.15401392]
[1772209307403,1.79053915,1940.6,1939.9,0.15401392]
[1772209307999,1.79054531,1940.6,1939.9,0.15401392]
[1772209308198,1.79054531,1940.6,1940.0,0.0244518]
[1772209309135,1.79054531,1940.6,1940.0,1.31306965]
[1772209309348,1.79054531,1940.6,1940.0,1.28861785]
[1772209309702,0.001,1940.7,1940.1,0.15425194]
[1772209309907,0.50227779,1940.6,1940.2,1.084]
[1772209310561,0.50227779,1940.6,1940.1,1.084]
[1772209311207,1.79057217,1940.6,1940.1,1.084]
[1772209311913,0.50227779,1940.5,1940.1,1.084]
[1772209312229,0.50227779,1940.5,1939.9,1.084]
[1772209313202,1.28839414,1940.4,1939.9,1.084]
[1772209313604,0.50227779,1940.3,1939.9,1.084]
[1772209315439,5.15457658,1940.7,1940.0,0.15463589]
[1772209315440,0.50327779,1940.7,1940.0,0.15463589]
[1772209315645,1.79147867,1940.7,1940.0,0.15463589]
[1772209315811,1.79147987,1940.7,1940.0,0.15463589]
[1772209316905,1.79147987,1940.7,1939.9,2.37271978]
[1772209316906,0.50227779,1940.6,1939.9,2.37271978]
[1772209317106,0.50227779,1940.6,1940.0,0.0011]
[1772209317325,1.79060554,1940.5,1940.0,0.0011]
[1772209317531,1.79160554,1940.5,1940.0,0.0011]
[1772209318229,0.50327779,1940.5,1940.0,0.0011]
[1772209319322,0.001,1940.5,1940.0,1.44461587]
[1772209320049,0.001,1940.5,1940.0,1.4446602]
[1772209320608,0.001,1940.7,1940.2,0.15397366]
[1772209320938,1.28920785,1940.7,1940.3,1.23804485]
[1772209321109,0.50227779,1940.6,1940.3,1.084]
[1772209321308,1.79060554,1940.5,1940.3,1.084]
[1772209321510,1.79060554,1940.5,1940.1,1.084]
[1772209323549,0.50227779,1940.4,1940.1,0.84640873]
[1772209325727,1.79070006,1940.4,1940.1,0.84640873]
[1772209326159,1.28842227,1940.4,1940.1,0.84640873]
[1772209326662,0.001,1940.7,1940.1,2.28942025]
[1772209326950,1.79148178,1940.7,1940.1,2.28942025]
[1772209327261,1.79148178,1940.7,1940.1,1.00083867]
[1772209327759,0.50227779,1940.6,1940.1,0.84640873]
[1772209328128,0.50227779,1940.6,1940.0,0.0011]
[1772209328528,0.50227779,1940.6,1939.9,0.0011]
[1772209328733,0.50227779,1940.3,1939.9,0.0011]
[1772209328928,0.50227779,1940.2,1939.9,0.0011]
[1772209329151,0.50227779,1940.2,1939.7,0.0011]
[1772209329454,0.50227779,1940.2,1939.6,0.0011]
[1772209329628,0.50227779,1940.0,1939.6,0.0011]
[1772209330222,0.50227779,1940.0,1939.5,0.0011]
[1772209331656,1.28856697,1940.2,1939.5,0.99194285]
[1772209331840,1.77517782,1940.2,1939.5,2.28089212]
[1772209332345,1.28856697,1940.2,1939.6,0.15590707]
[1772209333129,1.77500499,1940.4,1939.6,2.57528612]
[1772209333371,1.77500499,1940.4,1939.6,0.15590707]
[1772209334157,1.77500499,1940.4,1939.7,1.2888591]
[1772209334332,5.15445493,1940.5,1939.9,0.15602612]
[1772209334333,0.001,1940.5,1939.9,0.15602612]
[1772209334534,1.28919763,1940.7,1940.1,0.15502612]
[1772209334762,1.28919763,1940.7,1940.0,1.082]
[1772209334763,1.77580848,1940.7,1940.0,1.082]
[1772209334974,0.48661085,1940.6,1939.9,0.15508451]
[1772209335186,0.48661085,1940.6,1939.9,1.081]
[1772209336350,0.48661085,1940.4,1939.9,1.081]
[1772209337847,1.28832775,1940.5,1939.9,2.36971697]
[1772209339075,0.48661085,1940.6,1939.9,2.5250325]
[1772209339278,0.001,1940.7,1940.1,0.15531553]
[1772209339449,1.77617055,1941.0,1940.3,2.57469458]
[1772209339650,1.77617055,1941.0,1940.4,1.082]
[1772209339880,0.48814971,1941.0,1940.4,1.082]
[1772209340063,0.48814971,1941.0,1940.4,1.23737631]
[1772209340064,0.00153886,1941.0,1940.4,1.23737631]
[1772209340456,0.00153886,1941.0,1940.4,2.52572959]
[1772209341260,0.00153886,1941.0,1940.5,0.15543092]
[1772209341778,0.001,1941.1,1940.4,2.37035328]
[1772209341779,0.001,1941.2,1940.6,2.57487192]
[1772209342284,0.48661085,1941.0,1940.3,1.083]
[1772209342582,0.48661085,1940.8,1940.3,1.083]
[1772209342783,5.15324895,1941.2,1940.3,1.083]
[1772209342784,4.11757668,1942.0,1940.4,0.15554766]
[1772209342987,1.28673632,1942.9,1941.8,0.15554766]
[1772209343187,1.28673632,1942.9,1942.6,0.331808]
[1772209343188,0.48661085,1942.7,1942.6,0.331808]
[1772209343553,0.48661085,1942.7,1942.4,0.331808]
[1772209344179,0.48661085,1942.7,1941.6,2.41937905]
[1772209344385,1.28693503,1942.6,1941.7,1.28753154]
[1772209344703,0.48661085,1942.8,1942.0,0.00153886]
[1772209344984,0.48661085,1942.7,1942.0,0.00153886]
[1772209345788,0.48661085,1942.8,1942.0,0.00153886]
[1772209345959,4.31129422,1942.7,1942.0,0.00153886]
[1772209346891,4.31129422,1942.7,1942.0,1.2888715]
[1772209347867,0.48661085,1942.6,1942.0,0.00153886]
[1772209348269,1.276,1942.5,1942.0,0.00153886]
[1772209348673,0.48661085,1942.6,1942.0,0.00153886]
[1772209348986,4.31129422,1942.7,1942.0,0.00153886]
[1772209349286,1.276,1942.6,1942.0,0.00153886]
[1772209349486,4.31129422,1942.7,1942.0,0.00153886]
[1772209349686,1.276,1942.6,1942.0,0.00153886]
[1772209351978,4.31129422,1942.5,1942.0,0.00153886]
[1772209352192,0.48661085,1942.4,1941.3,1.28774763]
[1772209353205,1.28713381,1942.3,1941.1,5.15170771]
[1772209353388,0.48661085,1942.2,1941.1,5.15170771]
[1772209353699,1.76261085,1942.1,1941.1,5.15170771]
[1772209354668,1.276,1942.2,1941.4,3.6386069]
[1772209355481,4.31129422,1942.0,1941.5,1.28766417]
[1772209358110,4.04321833,1942.0,1941.3,3.973579]
[1772209358308,4.04321833,1942.0,1941.3,2.261335]
[1772209358667,1.28686879,1942.7,1941.7,3.37687468]
[1772209358897,0.55877071,1942.5,1941.9,3.37687468]
[1772209359094,0.55877071,1942.5,1941.6,3.37687468]
[1772209360096,1.28686879,1942.7,1941.7,1.34513013]
[1772209360397,1.275,1942.6,1941.7,1.34513013]
[1772209360968,1.275,1942.5,1941.7,1.34513013]
[1772209361192,5.70624587,1942.8,1941.9,3.37687468]
[1772209361193,0.55877071,1942.8,1941.9,3.37687468]
[1772209361373,0.55877071,1942.8,1942.0,3.40846]
[1772209361374,1.275,1942.7,1942.0,3.40846]
[1772209361576,1.83377071,1942.7,1942.0,3.40846]
[1772209361779,1.83377071,1942.7,1941.8,3.423209]
[1772209361979,1.84567414,1942.7,1941.9,1.28739893]
[1772209362177,1.274,1942.6,1941.9,1.28739893]
[1772209362570,1.83277071,1942.6,1941.9,1.28739893]
[1772209363470,1.274,1942.5,1941.9,1.28739893]
[1772209363665,1.18288045,1942.4,1941.9,1.28739893]
[1772209364099,1.274,1942.4,1941.8,5.14959575]
[1772209364268,1.274,1942.5,1941.8,5.14959575]
[1772209364976,1.273,1942.7,1941.8,5.14959575]
[1772209365672,1.273,1942.7,1941.8,5.18066216]
[1772209366399,1.87733049,1942.7,1941.8,5.18066216]
[1772209368003,0.60433049,1942.6,1941.8,5.14959575]
[1772209368801,0.60433049,1942.6,1941.8,5.19272708]
[1772209369013,1.271,1942.7,1942.1,3.37687468]
[1772209369176,0.60433049,1942.9,1942.4,3.37687468]
[1772209369581,0.00153886,1943.0,1942.2,0.04313133]
[1772209369805,0.00153886,1943.0,1942.4,3.37687468]
[1772209370375,0.001,1942.8,1942.7,3.37687468]
[1772209370596,0.001,1943.3,1942.8,1.28680255]
[1772209370981,0.60433049,1943.2,1942.8,1.28680255]
[1772209371882,0.60433049,1943.2,1942.4,5.14800514]
[1772209372894,0.60433049,1943.0,1942.4,5.14800514]
[1772209373206,0.60433049,1943.0,1942.2,1.28720008]
[1772209373682,0.60433049,1943.0,1942.0,0.00153886]
[1772209373888,0.60433049,1943.0,1942.0,1.28881914]
[1772209374287,0.60433049,1943.0,1942.0,0.00153886]
[1772209374487,0.60433049,1942.8,1942.0,1.2888567]
[1772209374685,0.60433049,1942.4,1942.0,0.00153886]
[1772209379614,0.60433049,1942.3,1941.6,1.28755836]
[1772209380396,1.87333049,1942.3,1941.6,1.28755836]
[1772209380944,2.55600128,1942.5,1941.6,1.3786912]
[1772209381722,0.60356106,1942.4,1941.6,1.28755836]
[1772209381928,0.60356106,1942.4,1941.4,1.2877305]
[1772209382842,0.60356106,1942.2,1941.2,0.0011]
[1772209383038,0.60356106,1942.1,1941.2,0.0011]
[1772209383206,0.60356106,1941.9,1941.2,0.0011]
[1772209383407,0.60356106,1941.9,1941.5,0.0011]
[1772209384763,1.269,1941.8,1941.5,0.0011]
[1772209385040,3.15982742,1942.1,1941.5,0.0011]
[1772209385205,0.60356106,1942.0,1941.4,0.0011]
[1772209385805,1.87201106,1941.9,1941.4,0.0011]
[1772209387637,0.60301106,1941.8,1941.4,0.0011]
[1772209388548,1.269,1941.7,1941.4,0.0011]
[1772209390820,1.2875014,1941.8,1941.4,0.0011]
[1772209391022,1.269,1941.8,1941.4,0.0011]
[1772209392150,1.87201106,1941.8,1941.4,0.0011]
[1772209393046,0.60301106,1941.8,1941.4,0.0011]
[1772209393250,1.27,1941.9,1941.4,0.0011]
[1772209393450,1.8648031,1942.3,1941.4,0.63505309]
[1772209393954,0.5948031,1942.2,1941.4,0.0011]
[1772209395341,0.5948031,1942.1,1941.4,0.0011]
[1772209396033,0.5948031,1942.1,1941.5,0.0011]
[1772209396230,0.001,1941.8,1941.5,0.0011]
[1772209396748,0.5948031,1941.3,1940.9,0.0011]
[1772209396918,1.8638031,1941.2,1940.9,0.0011]
[1772209397119,1.269,1941.1,1940.9,0.0011]
[1772209397346,2.55699455,1941.1,1940.9,0.0011]
[1772209400248,2.55699455,1941.1,1940.3,1.28846054]
[1772209400553,0.5948031,1941.0,1940.4,5.1549262]
[1772209401153,0.5948031,1941.0,1940.0,1.29129214]
[1772209401450,0.5948031,1940.8,1940.0,0.00263886]
[1772209401651,0.5948031,1940.6,1940.0,0.00263886]
[1772209404432,0.5948031,1940.4,1940.0,0.00263886]
[1772209404838,1.8678031,1940.3,1940.0,0.00263886]
[1772209406059,0.5948031,1940.2,1939.7,0.0011]
[1772209406228,0.5948031,1940.1,1939.7,0.0011]
[1772209406427,0.5948031,1940.1,1939.5,0.0011]
[1772209406428,0.5948031,1939.9,1939.5,0.0011]
[1772209406659,1.28865979,1940.0,1939.5,0.0011]
[1772209406660,0.5948031,1939.7,1939.5,0.0011]
[1772209406963,1.274,1939.7,1939.5,0.0011]
[1772209407849,0.5948031,1939.9,1939.5,0.0011]
[1772209407850,1.274,1939.9,1939.5,0.0011]
[1772209408157,1.88343762,1940.1,1939.5,0.0011]
[1772209408455,2.56272632,1939.9,1939.5,0.0011]
[1772209408640,1.274,1939.9,1939.5,0.0011]
[1772209409036,2.56272634,1939.9,1939.5,0.0011]
[1772209409369,2.56272634,1939.9,1939.6,0.0011]
[1772209410228,1.274,1939.9,1939.6,0.0011]
[1772209410431,1.276,1939.9,1939.6,0.0011]
[1772209410632,1.276,1940.0,1939.6,0.0011]
[1772209410827,1.276,1940.0,1939.6,0.63505309]
[1772209411033,0.5948031,1940.7,1939.6,0.63505309]
[1772209411254,1.8708031,1940.6,1939.6,0.63505309]
[1772209411450,0.86,1940.5,1939.6,0.63505309]
[1772209411842,5.7470964,1940.9,1939.6,0.63505309]
[1772209412033,1.276,1940.6,1939.6,0.63505309]
[1772209412461,5.7470964,1940.9,1939.9,0.63395309]
[1772209412763,1.276,1940.8,1939.9,0.63395309]
[1772209413456,0.5948031,1940.7,1939.9,0.63395309]
[1772209414868,1.88305156,1940.7,1939.8,1.28879265]
[1772209417372,0.5948031,1940.7,1939.8,1.28879265]
[1772209417681,2.56418148,1940.8,1940.0,3.0508306]
[1772209417682,1.274,1940.8,1940.0,3.0508306]
[1772209417881,0.00253886,1941.0,1940.3,3.0508306]
[1772209418051,0.00253886,1941.0,1940.4,0.63395309]
[1772209419569,0.00253886,1941.0,1940.5,1.28832775]
[1772209421775,0.00253886,1941.0,1940.4,5.153311]
[1772209421945,0.001,1940.7,1940.4,5.153311]
[1772209422149,1.28759785,1941.6,1940.5,0.64667151]
[1772209422341,3.21235329,1941.6,1940.7,0.64667151]
[1772209423240,0.65275544,1941.5,1940.4,8.21686002]
[1772209423678,0.65275544,1941.5,1940.5,0.64667151]
[1772209423987,1.2877305,1941.4,1940.6,1.28826136]
[1772209425356,1.94048594,1941.4,1940.6,1.28826136]
[1772209425656,2.41787751,1941.8,1940.9,2.41687751]
[1772209425657,1.94124561,1941.8,1940.9,2.41687751]
[1772209425873,3.21224561,1941.8,1941.0,1.28799587]
[1772209426284,3.21224561,1941.8,1941.0,1.93466738]
[1772209426498,2.55830838,1942.1,1941.2,2.41687751]
[1772209426661,0.6542943,1942.0,1941.3,0.64667151]
[1772209427175,0.00153886,1942.0,1941.3,0.64667151]
[1772209427969,0.00153886,1942.0,1941.4,1.93440201]
[1772209429094,2.41787751,1942.8,1941.9,2.41687751]